Cogmind - Beta 10.2 @@@ ROGUE MODE // 2020.11.30 @ 16:10:56 // Halloween2020/ForbiddenLore Player: Demise Result: Destroyed self with Mini Grenade Launcher Performance ------------- Evolutions (1) 500 Regions Visited (5) 1000 Robots Destroyed (41) 205 Value Destroyed (869) 869 Prototype IDs (37) 740 Alien Tech Used (0) 0 Bonus (505) 505 TOTAL SCORE: 3819 Bonus ------- Follower Combat Kills 205 Aligned with FarCom 300 Cogmind --------- Core Integrity 0/400 Matter 140/300 Energy 34/100 System Corruption 2% Temperature Cool (0) Movement Core (1550) Ox30 Location -9/Exiles Parts ------- > --- POWER (1) -------- (None) > --- PROPULSION (2) --- (None) > --- UTILITY (4) ------ Small Storage Unit Medium Storage Unit Humpback > --- WEAPON (2) ------- Mini Grenade Launcher > --- INVENTORY (30) --- Small Storage Unit Cloak of Protection Supersonic Drone Bay (1/1) Datajack Peak State ------------ > --- POWER ------------ Makeshift Power Source > --- PROPULSION ------- Light Treads Wheel > --- UTILITY ---------- Humpback Small Matter Pod Core Shielding > --- WEAPON ----------- Mini Grenade Launcher Datajack > --- INVENTORY -------- Nuclear Core Fission Core Light Fission Core Aluminum Leg Flying Fortress v7 Small Storage Unit Medium Storage Unit Humpback High-capacity Matter Pod Cloak of Protection Supersonic Drone Bay Assault Rifle Assault Rifle Assault Rifle Assault Rifle [Rating: 20] Favorites ----------- Power Light Nuclear Core Engine Makeshift Power Source Power Core Light Nuclear Core Propulsion Light Treads Treads Light Treads Leg Aluminum Leg Wheel Wheel Flight Unit Improved Flight Unit Utility Large Storage Unit Device Improved Heat Sink Storage Large Storage Unit Protection Core Shielding Weapon EM Pulse Gun Energy Gun EM Pulse Gun Ballistic Gun Light Assault Rifle Ballistic Cannon Improved Light Cannon Launcher Mini Grenade Launcher Special Weapon Mining Laser Special Melee Weapon Datajack Build | -11 -10 -10 -9 -9 -9 ------- Run | Scr Mat Min Mat Min Exi Slots Evolved 2 | . . . 2 . . Power . | . . . . . . Propulsion . | . . . . . . Utility 2 | . . . 2 . . Weapon . | . . . . . . Parts Attached 60 | 3 9 5 19 7 17 Power 3 | . 1 1 . . 1 Engine 2 | . 1 . . . 1 Core 1 | . . 1 . . . Reactor . | . . . . . . Propulsion 13 | 2 2 2 5 1 1 Treads 6 | 1 1 1 2 1 . Leg 1 | . . . . . 1 Wheel 5 | 1 1 1 2 . . Hover . | . . . . . . Flight 1 | . . . 1 . . Utility 20 | 1 2 . 6 2 9 Device 3 | 1 . . . 2 . Storage 12 | . 2 . 2 . 8 Processor . | . . . . . . Hackware . | . . . . . . Protection 5 | . . . 4 . 1 Artifact . | . . . . . . Weapon 24 | . 4 2 8 4 6 Energy Gun 7 | . 4 2 . 1 . Energy Cannon . | . . . . . . Ballistic Gun 9 | . . . 4 1 4 Ballistic Cannon 2 | . . . 2 . . Launcher 3 | . . . . 2 1 Special Weapon 2 | . . . 2 . . Impact Weapon . | . . . . . . Slashing Weapon . | . . . . . . Piercing Weapon . | . . . . . . Special Melee Weapon 1 | . . . . . 1 Unidentified Prototypes 1 | . . . 1 . . Parts Lost 20 | . . 2 . 7 11 Power 2 | . . . . 1 1 Propulsion 4 | . . . . 1 3 Utility 5 | . . . . 2 3 Weapon 9 | . . 2 . 3 4 Highest Loss Streak 11 | . . 1 . 5 11 Average Slot Usage (%) 94 | . 100 99 99 92 84 Engine 4 | . 14 2 . . 6 Core 5 | . . 11 11 9 . Treads 11 | . 14 14 11 10 10 Wheel 11 | . 14 14 10 11 9 Device 2 | . . . . 6 3 Storage 24 | . 27 28 22 22 25 Protection 8 | . . . 21 12 6 Energy Gun 9 | . 21 27 5 . . Ballistic Gun 7 | . 6 . 11 17 3 Launcher 3 | . . . . 2 9 Special Melee Weapon 2 | . . . . . 7 Naked Turns . | . . . . . . Heaviest Build 119 | 14 41 40 81 81 119 Greatest Support 20 | 20 20 20 20 20 20 Greatest Overweight (x) 13 | . 2 13 4 4 8 Average Overweight (x) 3 | . 1 2 3 3 4 Largest Inventory Capacity 44 | 6 16 16 20 20 44 Average Capacity 19 | 6 15 16 17 20 25 Most Carried 23 | 6 16 16 20 20 23 Average Carried 16 | 5 13 15 16 18 16 Final Capacity 30 | 6 16 16 20 20 30 Final Carried 20 | 6 16 16 20 19 4 Class Distribution -------------------- 46% | Mutant 29% | Hauler-Mutant 23% | Scavenger-Mutant Dominant Class ---------------- Mutant | -10/Materials Mutant | -10/Mines Scavenger-Mutant | -9/Materials Scavenger-Mutant | -9/Mines Hauler-Mutant | -9/Exiles Resources | -11 -10 -10 -9 -9 -9 ----------- Run | Scr Mat Min Mat Min Exi Matter Collected 1734 | 396 493 50 256 269 270 Remotely . | . . . . . . Salvage Created 1314 | 225 359 254 212 251 13 Parts 84 | 16 20 21 14 13 . Haulers Intercepted 3 | . 1 . 2 . . Recyclers Shooed 2 | 1 . 1 . . . Parts Field Recycled . | . . . . . . Retrieved Matter . | . . . . . . Parts Self-Destructed . | . . . . . . Prevented . | . . . . . . Kills | -11 -10 -10 -9 -9 -9 ------- Run | Scr Mat Min Mat Min Exi Combat Hostiles Destroyed 31 | . 7 5 3 12 4 Guns 20 | . 6 5 3 6 . AOE 11 | . 1 . . 6 4 Classes Destroyed 11 | 3 4 1 1 2 . Worker 3 | 2 1 . . . . Builder 1 | . . 1 . . . Tunneler 6 | 5 . 1 . . . Hauler 3 | . 1 . 2 . . Recycler 2 | 1 . 1 . . . Operator 1 | . . . 1 . . Watcher 3 | . 2 . 1 . . Swarmer 6 | . 3 3 . . . Grunt 14 | . 4 2 3 5 . Demolisher 2 | . . . . 2 . Assembled 9 | . . . . 5 4 Best Kill Streak 6 | 6 4 4 3 5 4 Combat Bots Only 5 | . 3 2 2 5 4 Max Kills in Single Turn 4 | 1 2 1 1 4 3 Gunslinging . | . . . . . . Exploded 4 | . 1 . . 4 3 Melee . | . . . . . . Uniques/NPCs Destroyed . | . . . . . . Combat | -11 -10 -10 -9 -9 -9 -------- Run | Scr Mat Min Mat Min Exi Damage Taken 2997 | . 306 243 124 886 1438 Core 516 | . 38 65 10 171 232 Absorbed by Shields 86 | . . . . 86 . Core Remaining (%) 79 | 100 . 58 . . . Volleys Fired 216 | 20 55 22 27 40 52 Largest 2 | 2 2 2 2 2 2 Hottest 100 | 40 80 80 100 79 40 Shots Fired 390 | 40 109 43 45 64 89 Gun 363 | 40 109 43 34 52 85 Cannon 4 | . . . 4 . . Launcher 16 | . . . . 12 4 Special 7 | . . . 7 . . Kinetic 240 | 40 28 . 36 51 85 Thermal 23 | . 6 9 7 1 . Explosive 16 | . . . . 12 4 Electromagnetic 111 | . 75 34 2 . . Robot Hit Streak 13 | 6 6 4 12 12 13 Robot Miss Streak 6 | 6 4 5 5 2 3 Penetration Max . | . . . . . . Secondary Targets 3 | . . 3 . . . Max Gunslinging Chain 1 | . . 1 . . . Shots Hit Robots 236 | 23 61 19 23 44 66 Core Hits 104 | 9 19 10 11 36 19 Critical Hits 1 | . . . 1 . . Critical Kills . | . . . . . . Critical Parts Destroyed 1 | . . . 1 . . Melee Attacks 4 | . . . . . 4 Impact . | . . . . . . Slashing . | . . . . . . Piercing . | . . . . . . Sneak Attacks 4 | . . . . . 4 Combat Hostiles . | . . . . . . Follow-up Attacks . | . . . . . . Damage Inflicted 3918 | 345 1020 304 291 1012 946 Guns 2911 | 345 809 304 240 452 761 Cannons 21 | . . . 21 . . Explosions 956 | . 211 . . 560 185 Melee . | . . . . . . Ramming 6 | . . . 6 . . Kinetic 2023 | 345 234 . 246 437 761 Thermal 336 | . 267 30 24 15 . Explosive 745 | . . . . 560 185 Electromagnetic 808 | . 519 274 15 . . Impact . | . . . . . . Slashing . | . . . . . . Piercing . | . . . . . . Highest Corruption 2 | . 1 1 2 2 2 Average Corruption 1 | . 1 1 1 2 2 Corruption Purged . | . . . . . . Effects 39 | . 3 8 8 8 12 Message Errors 11 | . 1 3 2 2 3 Heat Flow Errors 5 | . . . 1 2 2 Energy Discharges 8 | . . 2 1 1 4 Data Loss (minor) 9 | . 1 2 3 2 1 Targeting Errors 4 | . . 1 1 1 1 Weapon Failures 2 | . 1 . . . 1 Overload Shots . | . . . . . . Overflow Damage 50 | . 38 . 11 1 . Projectiles 11 | . . . 11 . . Explosions 39 | . 38 . . 1 . Melee . | . . . . . . Knockbacks . | . . . . . . Impact . | . . . . . . Kinetic . | . . . . . . Secondary . | . . . . . . Self-Inflicted Damage 158 | . . . 3 68 87 Shots 6 | . . . . 3 3 Rammed 1 | . . . 1 . . Targets Rammed 1 | . . . 1 . . Kicked . | . . . . . . Crushed . | . . . . . . Highest Temperature 263 | . 57 160 202 105 263 Average Temperature 43 | . 23 68 26 17 135 Received Heat Transfer 359 | . 144 45 45 125 . Siege Activations . | . . . . . . Robots Corrupted . | . . . . . . Combat Hostiles . | . . . . . . Parts Fried 6 | . 3 3 . . . Impact Corruptions . | . . . . . . Robots Melted . | . . . . . . Combat Hostiles . | . . . . . . Parts Melted 1 | . 1 . . . . Heat Transferred 587 | . 425 75 50 37 . Parts Sabotaged . | . . . . . . Parts Stolen . | . . . . . . Parts Stripped . | . . . . . . Power Chain Reactions 4 | . 4 . . . . Missiles Intercepted . | . . . . . . Alert | -11 -10 -10 -9 -9 -9 ------- Run | Scr Mat Min Mat Min Exi Peak Influence 285 | 40 154 183 285 116 . Initial 66 | . 26 37 . 66 . Average 80 | 19 77 89 102 52 . Maximum Alert Level 1 | . . . 1 . . Low Security (%) 97 | 100 100 100 91 100 . Level 1 2 | . . . 8 . . Level 2 . | . . . . . . Level 3 . | . . . . . . Level 4 . | . . . . . . Level 5 . | . . . . . . High Security . | . . . . . . Max Security . | . . . . . . Squads Dispatched 6 | . 2 . 3 1 . Investigation 1 | . . . 1 . . Extermination . | . . . . . . Reinforcement 5 | . 2 . 2 1 . Assault . | . . . . . . Garrison . | . . . . . . Intercept . | . . . . . . Construction Impeded 1 | . . . . 1 . Haulers Reinforced . | . . . . . . Stealth | -11 -10 -10 -9 -9 -9 --------- Run | Scr Mat Min Mat Min Exi Distress Signals 4 | . 2 . 2 . . Communications Jammed . | . . . . . . Distress Signals . | . . . . . . Times Spotted 62 | . 19 5 16 16 6 Peak Tracking Total 11 | . 5 3 6 9 11 Tactical Retreats 6 | . 4 . . 2 . Traps | -11 -10 -10 -9 -9 -9 ------- Run | Scr Mat Min Mat Min Exi Traps Triggered 4 | . 2 . 2 . . Indirectly . | . . . . . . Trap Hack Attempts . | . . . . . . Triggered . | . . . . . . Disarmed . | . . . . . . Reprogrammed . | . . . . . . Reused . | . . . . . . Traps Extracted . | . . . . . . Installed . | . . . . . . Triggered . | . . . . . . Exploded 3 | . . . . . 3 Machines | -11 -10 -10 -9 -9 -9 ---------- Run | Scr Mat Min Mat Min Exi Machines Disabled 5 | . 1 2 . . 2 Max in Single Turn 2 | . 1 2 . . 1 Machines Sabotaged . | . . . . . . Garrisons Compromised . | . . . . . . Overloaded Fab Kills . | . . . . . . Fab Network Shutdowns . | . . . . . . Hacking | -11 -10 -10 -9 -9 -9 --------- Run | Scr Mat Min Mat Min Exi Machines Accessed 19 | . 9 . 7 1 2 Terminals 10 | . 6 . 3 1 . Fabricators . | . . . . . . Repair Stations 3 | . 1 . 2 . . Recycling Units 3 | . 2 . 1 . . Scanalyzers 1 | . . . 1 . . Garrison Access . | . . . . . . Total Hacks 60 | . 29 . 25 1 5 Successful 40 | . 15 . 20 . 5 Failed 19 | . 13 . 5 1 . Catastrophic 5 | . 4 . . 1 . Database Lockouts 1 | . 1 . . . . Manual 29 | . 19 . 8 1 1 Terminals 29 | . 19 . 9 1 . Fabricators . | . . . . . . Repair Stations 12 | . 2 . 10 . . Recycling Units 10 | . 8 . 2 . . Scanalyzers 4 | . . . 4 . . Garrison Access . | . . . . . . Terminal Hacks 10 | . 4 . 1 . 5 Record 4 | . . . . . 4 Part Schematic 1 | . 1 . . . . Robot Analysis 1 | . 1 . . . . Branch Access Points 2 | . 1 . 1 . . Locate Traps 1 | . 1 . . . . EX-Prototype ID Bank 1 | . . . . . 1 Fabricator Hacks . | . . . . . . Repair Station Hacks 10 | . 2 . 8 . . Scan Component 5 | . 1 . 4 . . Repair 5 | . 1 . 4 . . Recycling Unit Hacks 7 | . 5 . 2 . . Process 1 | . 1 . . . . Report Inventory 3 | . 2 . 1 . . Retrieve Matter 1 | . 1 . . . . Retrieve Components 2 | . 1 . 1 . . Scanalyzer 4 | . . . 4 . . Insert Component 2 | . . . 2 . . Analyze 2 | . . . 2 . . Garrison Access Hacks . | . . . . . . Unauthorized Hacks 9 | . 4 . 5 . . Terminals 9 | . 4 . 5 . . Assimilate 1 | . . . 1 . . Botnet 6 | . 3 . 3 . . Operators 2 | . 1 . 1 . . Fabricators . | . . . . . . Repair Stations . | . . . . . . Recycling Units . | . . . . . . Scanalyzers . | . . . . . . Garrison Access . | . . . . . . Data Cores Recovered . | . . . . . . Used . | . . . . . . Hacking Detections 13 | . 7 . 5 1 . Full Trace Events 1 | . . . 1 . . Feedback Events 1 | . . . 1 . . Corruption 1 | . . . 1 . . Feedback Blocked . | . . . . . . Robot Schematics Acquired . | . . . . . . Robots Built . | . . . . . . Matter . | . . . . . . Time . | . . . . . . Total Robot Build Rating . | . . . . . . Part Schematics Acquired 3 | . 1 . 2 . . Parts Built . | . . . . . . Matter . | . . . . . . Time . | . . . . . . Total Part Build Rating . | . . . . . . Parts Repaired 5 | . 1 . 4 . . Time 136 | . 26 . 110 . . Parts Recycled . | . . . . . . Recycled Matter 363 | . 363 . . . . Retrieved Matter 397 | . 397 . . . . Retrieved Components 8 | . 5 . 3 . . Parts Scanalyzed 2 | . . . 2 . . Part Schematics Acquired 2 | . . . 2 . . Parts Damaged . | . . . . . . Bothacking | -11 -10 -10 -9 -9 -9 ------------ Run | Scr Mat Min Mat Min Exi Used RIF Installer . | . . . . . . Robots Hacked 4 | . . . . . 4 Non-combat 3 | . . . . . 3 Combat 1 | . . . . . 1 Robot Hacks Applied 4 | . . . . . 4 parse_system 4 | . . . . . 4 Relay Couplers Released . | . . . . . . Robots Rewired . | . . . . . . Allies Hacked . | . . . . . . Hacks Repelled . | . . . . . . Allies | -11 -10 -10 -9 -9 -9 -------- Run | Scr Mat Min Mat Min Exi Total Allies 5 | . . 5 . . . Largest Group 5 | . . 5 5 1 . Highest-Rated Group 85 | . . 85 85 14 . Highest-Rated Ally 31 | . . 31 31 14 . Total Orders . | . . . . . . Ally Attacks 46 | . . . 46 . . Total Damage 643 | . . . 643 . . Kills 10 | . . . 10 . . Allies Corrupted . | . . . . . . Allies Melted . | . . . . . . Intel | -11 -10 -10 -9 -9 -9 ------- Run | Scr Mat Min Mat Min Exi Robot Analysis Total 1 | . 1 . . . . Derelict Logs Recovered 2 | . . 1 . 1 . Drone Launches . | . . . . . . Drone Recoveries . | . . . . . . Exploration | -11 -10 -10 -9 -9 -9 ------------- Run | Scr Mat Min Mat Min Exi Turns Passed 5309 | 129 1048 722 1164 821 1425 Spaces Moved 2629 | 57 609 533 626 309 495 Core 1 | . . 1 . . . Treads 1118 | . 159 24 158 309 468 Legs 25 | 25 . . . . . Wheels 1485 | 32 450 508 468 . 27 Hover . | . . . . . . Flight . | . . . . . . Fastest Speed 100 | 100 100 110 120 220 160 Average Speed 161 | 108 134 114 147 222 233 Slowest Speed 700 | 120 180 700 240 240 260 Overloaded Moves . | . . . . . . Propulsion Burnouts . | . . . . . . Robots Hopped . | . . . . . . Cave-ins Triggered . | . . . . . . Exploration Rate (%) 55 | 3 80 98 42 41 70 Regions Visited 5 Branch Regions 3 Pre-discovered Areas 1 | . . . . . 1 Known Exits Taken 2 | . 1 . 1 . . Unknown Exits Taken 3 | 1 . 1 . 1 . Scrap Searched 1 | . . . . 1 . Spaces Dug 24 | . . . 4 20 . Terrain Destroyed 128 | . 6 . 6 106 10 Melee . | . . . . . . Projectile 6 | . . . 6 . . AOE 122 | . 6 . . 106 10 Terrain Rammed . | . . . . . . Walls Destroyed . | . . . . . . Machines Disabled . | . . . . . . Actions | -11 -10 -10 -9 -9 -9 --------- Run | Scr Mat Min Mat Min Exi Total 3307 | 85 738 604 811 385 684 Wait 284 | . 33 37 115 23 76 Move 2624 | 56 608 532 625 308 495 Hop . | . . . . . . Pick Up 54 | 3 19 3 12 5 12 Fast Attach 14 | 1 2 2 5 1 3 Attach 25 | 2 2 3 3 4 11 Detach 10 | . 2 2 . . 6 Swap 21 | . 5 . 11 2 3 Drop 54 | 3 12 3 12 2 22 Fire 216 | 20 55 22 27 40 52 Melee 4 | . . . . . 4 Ram 1 | . . . 1 . . Kick . | . . . . . . Crush . | . . . . . . Escape Stasis . | . . . . . . Rewire . | . . . . . . Trap . | . . . . . . Miscellaneous . | . . . . . . Route ------- -11/Scrapyard -10/Materials (discovered 3 exits: *Mat / *Min x2) -10/Mines (discovered 2 exits: *Mat x2) -9/Materials (discovered 3 exits: [*Mat] / *Min x2) -9/Mines (discovered 2 exits: [*Mat] / *Exi) -9/Exiles (discovered 1 exit: [*Min]) History --------- Turn | Location | Event 10 | -11/Scrapyard | Discovered new exit (range 3) 130 | -11/Scrapyard | Entered Materials 308 | -10/Materials | Build established: Mutant 414 | -10/Materials | Discovered new exit (range 7) 467 | -10/Materials | Repaired Assault Rifle? 546 | -10/Materials | Discovered new exit (range 7) 744 | -10/Materials | Discovered new exit (range 11) 755 | -10/Materials | Central database locked down 953 | -10/Materials | Identified exit to Mines 1178 | -10/Materials | Entered Mines 1300 | -10/Mines | Discovered new exit (range 13) 1335 | -10/Mines | Assisted by bots powering up and referring to "LRC-V3" 1343 | -10/Mines | Discovered new exit (range 14) 1464 | -10/Mines | Learned 2 Materials zone layouts 1900 | -10/Mines | Entered Materials 1900 | -9/Materials | Accompanied by 5 allies 1900 | -9/Materials | Evolved 2 slots: Utility x2 1901 | -9/Materials | Identified exit to Mines 1905 | -9/Materials | Led the pair of lost Derelicts to an unsafe place 2062 | -9/Materials | Repaired Core Shielding 2416 | -9/Materials | Repaired Wheel 2450 | -9/Materials | Repaired Shield Generator 2714 | -9/Materials | Discovered new exit (range 15) 2744 | -9/Materials | Build established: Scavenger-Mutant 3007 | -9/Materials | Repaired Mining Laser 3064 | -9/Materials | Entered Mines 3064 | -9/Mines | Accompanied by 1 ally 3067 | -9/Mines | Met a Derelict bent on vengeance 3121 | -9/Mines | Assembled infested the area 3344 | -9/Mines | Found a damaged Exp. Sensor Array with a note attached 3349 | -9/Mines | Found Prototype Device 3413 | -9/Mines | Discovered new exit (range 5) 3497 | -9/Mines | Discovered new exit (range 6) 3542 | -9/Mines | Learned Materials stockpile data 3806 | -9/Mines | Lost 5 parts (1p1n3w) 3885 | -9/Mines | Entered Exiles 3948 | -9/Exiles | Met 8R-AWN 3986 | -9/Exiles | Met EX-HEX 4064 | -9/Exiles | Build established: Hauler-Mutant 4180 | -9/Exiles | Met EX-DEC 4249 | -9/Exiles | Learned location of Zion (-6) 4363 | -9/Exiles | Discovered new exit (range 14) 4751 | -9/Exiles | Met EX-BIN 4782 | -9/Exiles | Aligned with FarCom system 4785 | -9/Exiles | Given EX-Vault access code 4840 | -9/Exiles | Opened EX-Vault 4852 | -9/Exiles | Found Flying Fortress v7 4862 | -9/Exiles | Found Supersonic Drone Bay 4868 | -9/Exiles | Found Cloak of Protection 4920 | -9/Exiles | Warned to stay clear of 0b10 Research branches 5076 | -9/Exiles | Attacked by the Exiles 5184 | -9/Exiles | Core integrity fell below 50% 5250 | -9/Exiles | Core integrity fell below 20% 5310 | -9/Exiles | Destroyed self with Mini Grenade Launcher Last Messages --------------- 05262_ Penetrated by HV Slug. 05275_ Critical hit. 05275_ Aluminum Leg destroyed. 05276_ The unstable cave ceiling collapses. 05279_ Penetrated by HV Slug. 05286_ Dropped Hcp. Matter Pod. 05287_ Extracted 200 matter. 05288_ Penetrated by HV Slug. 05292_ Critical hit. 05292_ Assault Rifle destroyed. 05292_ HV Slug penetrates Wall. 05296_ Penetrated by HV Slug. 05303_ Dropped Flying Fortress v7. 05305_ Penetrated by HV Slug. 05305_ Humpback destroyed. 05305_ HV Slug penetrates Wall. 05309_ Penetrated by HV Slug. 05309_ Critical hit. 05309_ Assault Rifle destroyed. 05309_ Penetrated by HV Slug. Map ----- +----------------------------------------------------+ | ?????????????????????????????????????????????????? | | ?????????????????????????????????????????????????? | | ?????????????????????????????????????????????????? | | ?????????????????????????????????????????????????? | | ????????????????#####????????????????????????????? | | ???????????????## ##???????????????????????????? | | ???????????????# #???????????????????????????? | | ???????????????# < #???????????????????????????? | | ???????????????# ###?????????????????????????? | | ???????????????# #?????????????????????????? | | ???????????????# !!! #??????????????????????????? | | ????????????????#!!=!|#??????????????????????????? | | ????????????????# !=[!##?????????????????????????? | | ????????????????## !!! #????????????#######??????? | | ?????????????? ??# #######??????# "#??????? | | ??????????????? ?# #""##?????# "#??????? | | ???????????????? ## #?????# "#??????? | | ????????????????# ##" ##???## ""#??????? | | ?????????????????#;"" #####" ""#??????? | | ??????????????????#;## ##" ""#??????? | | ???????????????????# ## #"" ###??????? | | ????????????????????# #"## #????????? | | ?????????????????????#;###### ##???????? | | ??????????????????????# ?##### "###?????? | | ??????????????????????##;#;###" ""##????? | | ??????????????????????# !@ """ % "#????? | | ??????????????????????#! =g # % """### | | ??????????????????????#! # % % ""# | | ??????????????????????# ### | | ??????????????????????# """"""###???#"# | | ??????????????????????##########?????#### | | ????????????????????????????????????????### % | | ??????????????????????????????????????????##" | | ????????????????????????????????????????????"" | | ?????????????????????????????????????????????## | | ??????????????????????????????????????????????##" | | ???????????????????????????????????????????????#"" | | ??????????????????????????????????????????????##" | | ??????????????????????????????????????????????#"" | | ?????????????????????????????????????????????##""" | | ?????????????????????????????????????????????#""" | | ?????????????????????????????????????????????#""" | | ?????????????????????????????????????????????#"" | | ?????????????????????????????????????????????#""" | | ?????????????????????????????????????????????#"" | | ?????????????????????????????????????????????##"" | | ??????????????????????????????????????????????#""" | | ??????????????????????????????????????????????## | | ???????????????????????????????????????????????#" | | ???????????????????????????????????????????????#"" | +----------------------------------------------------+ Best States ------------- Heat Dissipation 42 Energy Generation 15 Energy Capacity 250 Matter Stores 300 Matter Capacity 350 Sight Range 16 Terrain Scan Range 16 Terrain Scan Density 10 Armor Coverage 225 Core Shielding 20 Evasion (%) 40 Recoil Reduction 1 Item Schematics ----------------- Hcp. Storage Unit | -10/Materials | Hacked Imp. Flight Unit | -9/Materials | Scanalyzed Hcp. Matter Pod | -9/Materials | Scanalyzed Robot Schematics ------------------ None Fabricated ------------ Nothing Alien Tech Used ----------------- None Achievements -------------- None Challenges ------------ None Game ------ Seed RelayAccelerationHumpback Manual? 0 Play Time 00:44:38 Cumulative 98.2 hours Start 2020.11.30 @ 15:29:03 End 2020.11.30 @ 16:10:56 Sessions 1 Manual Loads 0 Difficulty Rogue Special Mode Halloween2020/ForbiddenLore Game No. 89 Rogue 89 Adventurer 0 Explorer 0 Win Type - Total 0 Types 0/0/0/0/0/0/0/0/0 Lore% 48 Gallery% 56 Achievement% 52 Wizard Run 0 Options --------- ASCII 0 Keyboard 1 Movement Numpad Keybinds 0 Fullscreen 1 Font 12/Terminus Map View 83x54 Tactical HUD 1 Map Filters NONE Filters NONE Steam 1 RUN: 4f5e3128-4883-4d60-ac22-f4a7a852ddd2